[Event "*** Titled Tuesday Blitz"]
[Site "Chess.com"]
[Date "2020.10.20"]
[Round "10"]
[White "CM_rui"]
[Black "tan275"]
[Result "1-0"]
[WhiteElo "2348"]
[BlackElo "2173"]
[TimeControl "180+1"]
[EndTime "11:58:20 PDT"]
[Termination "CM_rui won on time"]

1. e4 {[%clk 0:03:00.9]} 1... c6 {[%clk 0:02:59.8]} 2. d4 {[%clk 0:03:00.5]}
2... d5 {[%clk 0:02:59.9]} 3. Nc3 {[%clk 0:03:00.8]} 3... dxe4 {[%clk
0:02:59.6]} 4. Nxe4 {[%clk 0:03:01.7]} 4... Bf5 {[%clk 0:03:00]} 5. Nc5 {[%clk
0:03:02.3]} 5... e5 {[%clk 0:02:52.2]} 6. Nxb7 {[%clk 0:03:02.3]} 6... Qb6
{[%clk 0:02:51.3]} 7. Nc5 {[%clk 0:03:02.6]} 7... exd4 {[%clk 0:02:37.8]} 8. Nb3
{[%clk 0:03:02.4]} 8... Bb4+ {[%clk 0:02:15.9]} 9. Bd2 {[%clk 0:03:02.3]} 9...
c5 {[%clk 0:02:06.6]} 10. Bxb4 {[%clk 0:03:02]} 10... Qxb4+ {[%clk 0:02:05.9]}
11. Qd2 {[%clk 0:03:02.6]} 11... Qxd2+ {[%clk 0:02:05]} 12. Kxd2 {[%clk
0:03:03.5]} 12... Nd7 {[%clk 0:01:59.5]} 13. Nf3 {[%clk 0:03:01]} 13... Ngf6
{[%clk 0:01:56]} 14. Bd3 {[%clk 0:02:59.1]} 14... Be6 {[%clk 0:01:53.4]} 15. Na5
{[%clk 0:02:54.1]} 15... O-O {[%clk 0:01:43.9]} 16. h3 {[%clk 0:02:45.1]} 16...
h6 {[%clk 0:01:43]} 17. g4 {[%clk 0:02:43.4]} 17... Nd5 {[%clk 0:01:39.7]} 18.
Bc4 {[%clk 0:02:34.3]} 18... N7b6 {[%clk 0:01:36]} 19. Bb3 {[%clk 0:02:16.4]}
19... Rac8 {[%clk 0:01:31.8]} 20. Nc4 {[%clk 0:02:12.4]} 20... Rfd8 {[%clk
0:01:21]} 21. a4 {[%clk 0:02:03.3]} 21... Rb8 {[%clk 0:00:54.3]} 22. Nce5 {[%clk
0:01:55.8]} 22... Rdc8 {[%clk 0:00:44.8]} 23. a5 {[%clk 0:01:54.5]} 23... Na8
{[%clk 0:00:35.8]} 24. Nc4 {[%clk 0:01:35.1]} 24... Nac7 {[%clk 0:00:33.4]} 25.
Rhe1 {[%clk 0:01:25.2]} 25... Na6 {[%clk 0:00:20.8]} 26. Re5 {[%clk 0:01:11.6]}
26... Nab4 {[%clk 0:00:17.6]} 27. Rae1 {[%clk 0:01:08.8]} 27... Nf4 {[%clk
0:00:15.9]} 28. Nh4 {[%clk 0:00:54.4]} 28... Nbd5 {[%clk 0:00:09.8]} 29. Nf5
{[%clk 0:00:51.5]} 29... Rd8 {[%clk 0:00:08.6]} 30. Ncd6 {[%clk 0:00:49]} 30...
Nc7 {[%clk 0:00:06.1]} 31. Bxe6 {[%clk 0:00:44.4]} 31... Ncxe6 {[%clk
0:00:05.2]} 32. Ne7+ {[%clk 0:00:44.4]} 32... Kf8 {[%clk 0:00:03.5]} 33. Nc6
{[%clk 0:00:45.3]} 33... Rxd6 {[%clk 0:00:04]} 34. Nxb8 {[%clk 0:00:45.4]} 34...
Ke7 {[%clk 0:00:02.1]} 35. b4 {[%clk 0:00:40.1]} 35... cxb4 {[%clk 0:00:01.8]}
36. Rb1 {[%clk 0:00:40.2]} 36... Kd8 {[%clk 0:00:01.9]} 37. Rxb4 {[%clk
0:00:39.3]} 37... Nd5 {[%clk 0:00:02.1]} 38. Rb5 {[%clk 0:00:36.9]} 38... Nec7
{[%clk 0:00:01.4]} 39. Rc5 {[%clk 0:00:33.7]} 39... Kc8 {[%clk 0:00:02.3]} 40.
Nc6 {[%clk 0:00:31.4]} 40... Kb7 {[%clk 0:00:02.1]} 41. Ne7 {[%clk 0:00:30.2]}
41... Nb4 {[%clk 0:00:01.9]} 42. Rb5+ {[%clk 0:00:24.9]} 1-0

[Event "*** Titled Tuesday Blitz"]
[Site "Chess.com"]
[Date "2020.10.20"]
[Round "10"]
[White "vugarrasulov"]
[Black "W_Amadeus"]
[Result "1-0"]
[WhiteElo "2877"]
[BlackElo "2749"]
[TimeControl "180+1"]
[EndTime "11:58:21 PDT"]
[Termination "vugarrasulov won on time"]

1. d4 {[%clk 0:03:00.9]} 1... Nf6 {[%clk 0:02:59.7]} 2. c4 {[%clk 0:03:00.8]}
2... e6 {[%clk 0:02:59.8]} 3. Nf3 {[%clk 0:03:00.7]} 3... d5 {[%clk 0:02:59.3]}
4. g3 {[%clk 0:03:00.6]} 4... dxc4 {[%clk 0:02:52.9]} 5. Bg2 {[%clk 0:03:01]}
5... a6 {[%clk 0:02:53.5]} 6. O-O {[%clk 0:03:00.5]} 6... Nc6 {[%clk 0:02:53.6]}
7. e3 {[%clk 0:02:58.3]} 7... Rb8 {[%clk 0:02:53.4]} 8. Nfd2 {[%clk 0:02:55.2]}
8... e5 {[%clk 0:02:52.5]} 9. Bxc6+ {[%clk 0:02:46.4]} 9... bxc6 {[%clk
0:02:53.4]} 10. dxe5 {[%clk 0:02:47]} 10... Ng4 {[%clk 0:02:51.6]} 11. Nxc4
{[%clk 0:02:45.3]} 11... Be6 {[%clk 0:02:51.7]} 12. Qe2 {[%clk 0:02:33.4]} 12...
h5 {[%clk 0:02:34]} 13. f3 {[%clk 0:02:32.9]} 13... h4 {[%clk 0:02:21.5]} 14.
fxg4 {[%clk 0:02:27.1]} 14... hxg3 {[%clk 0:02:21.3]} 15. hxg3 {[%clk
0:02:26.3]} 15... Qd5 {[%clk 0:02:20.4]} 16. Qf3 {[%clk 0:01:50.8]} 16... Qxf3
{[%clk 0:01:31.3]} 17. Rxf3 {[%clk 0:01:51.7]} 17... Bxc4 {[%clk 0:01:31.6]} 18.
Nc3 {[%clk 0:01:51.8]} 18... Bb4 {[%clk 0:00:59.4]} 19. Rf4 {[%clk 0:01:38.7]}
19... Bxc3 {[%clk 0:00:45.2]} 20. Rxc4 {[%clk 0:01:35.8]} 20... Bxe5 {[%clk
0:00:44.4]} 21. Kg2 {[%clk 0:01:27.6]} 21... Rh6 {[%clk 0:00:39.2]} 22. Rb1
{[%clk 0:01:24.1]} 22... Rd6 {[%clk 0:00:28.8]} 23. b3 {[%clk 0:01:15.2]} 23...
Kd7 {[%clk 0:00:27.5]} 24. Rc2 {[%clk 0:01:04.5]} 24... a5 {[%clk 0:00:22.9]}
25. Bd2 {[%clk 0:00:50.6]} 25... a4 {[%clk 0:00:22.7]} 26. b4 {[%clk 0:00:51]}
26... a3 {[%clk 0:00:14.3]} 27. Rb3 {[%clk 0:00:50.1]} 27... Bb2 {[%clk
0:00:13.3]} 28. Kf3 {[%clk 0:00:48.1]} 28... Rb5 {[%clk 0:00:11.3]} 29. e4
{[%clk 0:00:44.1]} 29... g6 {[%clk 0:00:09.7]} 30. Bf4 {[%clk 0:00:39.3]} 30...
Rd1 {[%clk 0:00:09.4]} 31. g5 {[%clk 0:00:34.7]} 31... Rb6 {[%clk 0:00:06.5]}
32. Ke2 {[%clk 0:00:25.7]} 32... Ra1 {[%clk 0:00:04.9]} 33. Rd3+ {[%clk
0:00:26.3]} 33... Ke8 {[%clk 0:00:02]} 34. Bxc7 {[%clk 0:00:20.3]} 34... Rxb4
{[%clk 0:00:02.2]} 35. Rxc6 {[%clk 0:00:20.8]} 35... Rxe4+ {[%clk 0:00:01.5]}
36. Kf3 {[%clk 0:00:20.8]} 36... Re6 {[%clk 0:00:01.8]} 37. Rc2 {[%clk
0:00:17.8]} 37... Kf8 {[%clk 0:00:01.4]} 38. Ba5 {[%clk 0:00:11.4]} 1-0

[Event "*** Titled Tuesday Blitz"]
[Site "Chess.com"]
[Date "2020.10.20"]
[Round "10"]
[White "Anna_ChessMate"]
[Black "scandalgod"]
[Result "0-1"]
[WhiteElo "2530"]
[BlackElo "2417"]
[TimeControl "180+1"]
[EndTime "11:58:21 PDT"]
[Termination "scandalgod won by resignation"]

1. d4 {[%clk 0:02:59.7]} 1... d5 {[%clk 0:02:59.4]} 2. c4 {[%clk 0:03:00]} 2...
c6 {[%clk 0:02:59.2]} 3. Nf3 {[%clk 0:03:00.2]} 3... Nf6 {[%clk 0:02:57.3]} 4.
Nc3 {[%clk 0:03:00.6]} 4... dxc4 {[%clk 0:02:56.7]} 5. a4 {[%clk 0:02:59.4]}
5... Bf5 {[%clk 0:02:51.4]} 6. Ne5 {[%clk 0:02:59.7]} 6... e6 {[%clk 0:02:51.2]}
7. Nxc4 {[%clk 0:03:00.1]} 7... Bb4 {[%clk 0:02:48.7]} 8. f3 {[%clk 0:02:59.4]}
8... O-O {[%clk 0:02:15.8]} 9. e4 {[%clk 0:02:58.2]} 9... Nxe4 {[%clk
0:02:12.4]} 10. fxe4 {[%clk 0:02:59.1]} 10... Qh4+ {[%clk 0:02:08.8]} 11. Kd2
{[%clk 0:02:49.5]} 11... Qxe4 {[%clk 0:02:05.9]} 12. Qf3 {[%clk 0:02:43.7]}
12... Qxd4+ {[%clk 0:02:05.4]} 13. Ke1 {[%clk 0:02:44.2]} 13... Na6 {[%clk
0:01:59.5]} 14. Qe3 {[%clk 0:02:29.5]} 14... e5 {[%clk 0:01:55.2]} 15. Bd2
{[%clk 0:02:23.3]} 15... Rfe8 {[%clk 0:01:51.3]} 16. Be2 {[%clk 0:02:18.8]}
16... Nc5 {[%clk 0:01:44.4]} 17. Ne4 {[%clk 0:01:51.6]} 17... Bxd2+ {[%clk
0:00:42.7]} 18. Nexd2 {[%clk 0:01:48.9]} 18... Rad8 {[%clk 0:00:40]} 19. Ra3
{[%clk 0:01:42.2]} 19... b5 {[%clk 0:00:31.4]} 20. axb5 {[%clk 0:01:35.4]} 20...
cxb5 {[%clk 0:00:31.5]} 21. Na5 {[%clk 0:01:20.3]} 21... Nd3+ {[%clk 0:00:28.6]}
22. Rxd3 {[%clk 0:01:18.9]} 22... Bxd3 {[%clk 0:00:27.6]} 23. Qf3 {[%clk
0:00:51.8]} 23... e4 {[%clk 0:00:23.1]} 24. Qg4 {[%clk 0:00:42.4]} 24... Bxe2
{[%clk 0:00:19.6]} 25. Qxe2 {[%clk 0:00:43.3]} 25... e3 {[%clk 0:00:19.6]} 26.
Ndb3 {[%clk 0:00:40.8]} 26... Qb4+ {[%clk 0:00:19.2]} 27. Kf1 {[%clk 0:00:41.4]}
27... Qa4 {[%clk 0:00:18.4]} 28. g3 {[%clk 0:00:38.3]} 28... Qe4 {[%clk
0:00:17.8]} 29. Rg1 {[%clk 0:00:34.2]} 29... Qf5+ {[%clk 0:00:17.8]} 30. Kg2
{[%clk 0:00:34]} 30... Qe4+ {[%clk 0:00:17.9]} 31. Qf3 {[%clk 0:00:19.3]} 31...
Qc2+ {[%clk 0:00:16.8]} 32. Kh3 {[%clk 0:00:20]} 32... e2 {[%clk 0:00:16.2]} 33.
Re1 {[%clk 0:00:19.4]} 33... Rd1 {[%clk 0:00:15.4]} 34. Qf2 {[%clk 0:00:18.6]}
34... Rxe1 {[%clk 0:00:14.2]} 35. Qxe1 {[%clk 0:00:19.5]} 35... Qf5+ {[%clk
0:00:13.3]} 36. Kg2 {[%clk 0:00:20]} 36... Qe4+ {[%clk 0:00:13.5]} 37. Kf2
{[%clk 0:00:20.3]} 37... Qe3+ {[%clk 0:00:13.6]} 38. Kg2 {[%clk 0:00:20.9]}
38... h5 {[%clk 0:00:13.7]} 39. h4 {[%clk 0:00:16.6]} 39... Qe4+ {[%clk
0:00:13.3]} 40. Kf2 {[%clk 0:00:16.5]} 40... Re6 {[%clk 0:00:13.5]} 41. Na1
{[%clk 0:00:09.1]} 41... Rf6+ {[%clk 0:00:13.4]} 0-1

[Event "*** Titled Tuesday Blitz"]
[Site "Chess.com"]
[Date "2020.10.20"]
[Round "10"]
[White "vovachesss"]
[Black "ThePatrick27"]
[Result "1-0"]
[WhiteElo "2699"]
[BlackElo "2560"]
[TimeControl "180+1"]
[EndTime "11:58:24 PDT"]
[Termination "vovachesss won by resignation"]

1. d4 {[%clk 0:03:00.9]} 1... Nf6 {[%clk 0:02:59.2]} 2. Nc3 {[%clk 0:02:59.9]}
2... d5 {[%clk 0:02:50.9]} 3. Bf4 {[%clk 0:02:59.7]} 3... g6 {[%clk 0:02:43.9]}
4. e3 {[%clk 0:02:55.4]} 4... Bg7 {[%clk 0:02:42.9]} 5. h4 {[%clk 0:02:56]} 5...
O-O {[%clk 0:02:35.1]} 6. h5 {[%clk 0:02:54.2]} 6... Bf5 {[%clk 0:02:31.4]} 7.
hxg6 {[%clk 0:02:51]} 7... hxg6 {[%clk 0:02:21.8]} 8. Bd3 {[%clk 0:02:49.7]}
8... Bxd3 {[%clk 0:02:17.8]} 9. Qxd3 {[%clk 0:02:49.4]} 9... c5 {[%clk
0:02:13.7]} 10. Nf3 {[%clk 0:02:46.3]} 10... Nc6 {[%clk 0:02:12]} 11. O-O-O
{[%clk 0:02:45.2]} 11... Qa5 {[%clk 0:02:08.8]} 12. dxc5 {[%clk 0:02:37]} 12...
Qxc5 {[%clk 0:01:59.6]} 13. Rh4 {[%clk 0:02:29.5]} 13... Nb4 {[%clk 0:01:41.6]}
14. Qd2 {[%clk 0:01:57.7]} 14... Rfc8 {[%clk 0:01:28.8]} 15. Be5 {[%clk
0:01:18.5]} 15... Ne4 {[%clk 0:01:02.5]} 16. Nxe4 {[%clk 0:01:06.2]} 16... dxe4
{[%clk 0:01:03.4]} 17. Bxg7 {[%clk 0:01:05.9]} 17... Kxg7 {[%clk 0:00:50.7]} 18.
Nd4 {[%clk 0:00:38.8]} 18... e5 {[%clk 0:00:49.1]} 19. a3 {[%clk 0:00:30.6]}
19... Nd3+ {[%clk 0:00:30]} 20. Kb1 {[%clk 0:00:27.1]} 20... Nxb2 {[%clk
0:00:27.9]} 21. Kxb2 {[%clk 0:00:12]} 21... exd4 {[%clk 0:00:27.8]} 22. Qxd4+
{[%clk 0:00:10.8]} 22... Qxd4+ {[%clk 0:00:27]} 23. Rxd4 {[%clk 0:00:11.7]}
23... Rc7 {[%clk 0:00:22.6]} 24. Rhxe4 {[%clk 0:00:11.5]} 24... Rac8 {[%clk
0:00:21.8]} 25. Rd2 {[%clk 0:00:11.4]} 25... b6 {[%clk 0:00:20.8]} 26. Red4
{[%clk 0:00:11.4]} 26... Rc5 {[%clk 0:00:20.1]} 27. Rd7 {[%clk 0:00:10.7]} 27...
Ra5 {[%clk 0:00:20.1]} 28. Rb7 {[%clk 0:00:07.4]} 28... Rb5+ {[%clk 0:00:17.5]}
29. Kc1 {[%clk 0:00:07.4]} 29... Rbc5 {[%clk 0:00:16.8]} 30. Rxa7 {[%clk
0:00:06.3]} 30... Rg5 {[%clk 0:00:16]} 31. g3 {[%clk 0:00:05.3]} 31... Rf5
{[%clk 0:00:15.9]} 32. f4 {[%clk 0:00:05.2]} 32... Rc3 {[%clk 0:00:15.4]} 33.
Rd3 {[%clk 0:00:05.1]} 33... Rc4 {[%clk 0:00:15]} 34. Kd2 {[%clk 0:00:04.5]}
34... Rfc5 {[%clk 0:00:14.8]} 35. c3 {[%clk 0:00:04.6]} 35... Rh5 {[%clk
0:00:15]} 36. Rdd7 {[%clk 0:00:04.5]} 36... Rf5 {[%clk 0:00:15]} 37. Kd3 {[%clk
0:00:05]} 37... Rc8 {[%clk 0:00:14.9]} 38. e4 {[%clk 0:00:05.9]} 38... Rf6
{[%clk 0:00:14.9]} 39. e5 {[%clk 0:00:06.4]} 39... Rf5 {[%clk 0:00:14.9]} 40. e6
{[%clk 0:00:06.6]} 40... Rf8 {[%clk 0:00:13.7]} 41. Rxf7+ {[%clk 0:00:06.6]}
41... R8xf7 {[%clk 0:00:14.1]} 42. Rxf7+ {[%clk 0:00:07.5]} 42... Rxf7 {[%clk
0:00:14.7]} 43. exf7 {[%clk 0:00:08.4]} 43... Kxf7 {[%clk 0:00:15.6]} 44. Ke4
{[%clk 0:00:09.3]} 1-0

[Event "*** Titled Tuesday Blitz"]
[Site "Chess.com"]
[Date "2020.10.20"]
[Round "10"]
[White "Sharpchess22"]
[Black "As0nchess"]
[Result "1-0"]
[WhiteElo "2770"]
[BlackElo "2616"]
[TimeControl "180+1"]
[EndTime "11:58:25 PDT"]
[Termination "Sharpchess22 won on time"]

1. d4 {[%clk 0:03:00.9]} 1... Nf6 {[%clk 0:03:00.2]} 2. Nf3 {[%clk 0:03:00.3]}
2... d5 {[%clk 0:03:00.2]} 3. Bf4 {[%clk 0:02:59.3]} 3... e6 {[%clk 0:03:00.4]}
4. e3 {[%clk 0:02:59.4]} 4... Bd6 {[%clk 0:03:00.8]} 5. Bg3 {[%clk 0:02:59.8]}
5... O-O {[%clk 0:03:00.4]} 6. c3 {[%clk 0:02:59.4]} 6... c5 {[%clk 0:03:00.2]}
7. Bd3 {[%clk 0:02:59.1]} 7... b6 {[%clk 0:02:59]} 8. Qe2 {[%clk 0:02:58.5]}
8... Bb7 {[%clk 0:02:56.9]} 9. Nbd2 {[%clk 0:02:57.1]} 9... Qc7 {[%clk
0:02:55.3]} 10. Ne5 {[%clk 0:02:55.9]} 10... Nbd7 {[%clk 0:02:53.1]} 11. f4
{[%clk 0:02:54.7]} 11... Ne4 {[%clk 0:02:53]} 12. Nxe4 {[%clk 0:02:48.4]} 12...
dxe4 {[%clk 0:02:51.7]} 13. Bc4 {[%clk 0:02:48.8]} 13... Bd5 {[%clk 0:02:41.4]}
14. Bb5 {[%clk 0:02:42.3]} 14... Nxe5 {[%clk 0:02:36.3]} 15. fxe5 {[%clk
0:02:40.6]} 15... Be7 {[%clk 0:02:36.6]} 16. O-O {[%clk 0:02:40.2]} 16... c4
{[%clk 0:02:31.6]} 17. Qg4 {[%clk 0:02:37.4]} 17... a6 {[%clk 0:02:17.1]} 18.
Ba4 {[%clk 0:02:37.4]} 18... b5 {[%clk 0:02:17.3]} 19. Bc2 {[%clk 0:02:37.4]}
19... Qc6 {[%clk 0:02:17.7]} 20. Rf4 {[%clk 0:02:35.1]} 20... b4 {[%clk
0:02:12.4]} 21. Bxe4 {[%clk 0:02:34.8]} 21... Bxe4 {[%clk 0:02:11.1]} 22. Rxe4
{[%clk 0:02:34.7]} 22... bxc3 {[%clk 0:02:11.3]} 23. bxc3 {[%clk 0:02:34.4]}
23... Rab8 {[%clk 0:02:11]} 24. Rf1 {[%clk 0:02:24.7]} 24... Rb2 {[%clk
0:02:10.4]} 25. Bh4 {[%clk 0:02:21.7]} 25... Bxh4 {[%clk 0:02:06.4]} 26. Qxh4
{[%clk 0:02:21.5]} 26... Rxa2 {[%clk 0:02:07.3]} 27. Rg4 {[%clk 0:02:19.6]}
27... Kh8 {[%clk 0:02:03.8]} 28. Rf3 {[%clk 0:02:18.2]} 28... Ra1+ {[%clk
0:02:02.8]} 29. Kf2 {[%clk 0:02:18]} 29... Ra2+ {[%clk 0:02:01.1]} 30. Kg3
{[%clk 0:02:17.2]} 30... h6 {[%clk 0:01:49.2]} 31. Kh3 {[%clk 0:02:10]} 31...
Re2 {[%clk 0:01:47.1]} 32. Qg3 {[%clk 0:01:53.5]} 32... g5 {[%clk 0:01:17.8]}
33. Rxg5 {[%clk 0:01:51.9]} 33... hxg5 {[%clk 0:01:16.4]} 34. Qxg5 {[%clk
0:01:52]} 34... Qe4 {[%clk 0:01:15.9]} 35. Rf4 {[%clk 0:01:43.7]} 35... Qxg2+
{[%clk 0:00:29]} 36. Qxg2 {[%clk 0:01:42.8]} 36... Rxg2 {[%clk 0:00:29.9]} 37.
Kxg2 {[%clk 0:01:43.7]} 37... a5 {[%clk 0:00:26.7]} 38. Rf1 {[%clk 0:01:43.4]}
38... a4 {[%clk 0:00:24.1]} 39. Ra1 {[%clk 0:01:43.1]} 39... Ra8 {[%clk
0:00:24.3]} 40. Ra3 {[%clk 0:01:43.2]} 40... Kg7 {[%clk 0:00:24.2]} 41. Kf3
{[%clk 0:01:42.7]} 41... Kg6 {[%clk 0:00:24.3]} 42. Kf4 {[%clk 0:01:41.9]} 42...
Kh5 {[%clk 0:00:21.3]} 43. e4 {[%clk 0:01:41.3]} 43... Ra5 {[%clk 0:00:21.4]}
44. Kg3 {[%clk 0:01:32.5]} 44... Kg5 {[%clk 0:00:21]} 45. h4+ {[%clk 0:01:32.5]}
45... Kh5 {[%clk 0:00:21.1]} 46. Kh3 {[%clk 0:01:33]} 46... Ra8 {[%clk
0:00:16.5]} 47. Ra2 {[%clk 0:01:28.6]} 47... a3 {[%clk 0:00:16.2]} 48. Kg3
{[%clk 0:01:28.5]} 48... Ra5 {[%clk 0:00:15]} 49. Kf4 {[%clk 0:01:28.6]} 49...
Ra4 {[%clk 0:00:05.8]} 50. d5 {[%clk 0:01:28.1]} 50... Ra8 {[%clk 0:00:02.7]}
51. d6 {[%clk 0:01:24.3]} 51... Ra7 {[%clk 0:00:03.1]} 52. Ke3 {[%clk
0:01:23.2]} 52... Kxh4 {[%clk 0:00:03]} 53. Kd4 {[%clk 0:01:23.6]} 53... Kg4
{[%clk 0:00:02.3]} 54. Kxc4 {[%clk 0:01:24]} 54... Kf4 {[%clk 0:00:03.2]} 55.
Kd4 {[%clk 0:01:23.2]} 55... Ra4+ {[%clk 0:00:03.3]} 56. c4 {[%clk 0:01:23.3]}
56... Ra7 {[%clk 0:00:02.3]} 57. c5 {[%clk 0:01:22.8]} 57... Ra4+ {[%clk
0:00:02.3]} 58. Kc3 {[%clk 0:01:20.9]} 58... Kxe5 {[%clk 0:00:03.2]} 59. Kb3
{[%clk 0:01:19.2]} 59... Ra5 {[%clk 0:00:02.3]} 60. Kb4 {[%clk 0:01:19.2]} 60...
Ra8 {[%clk 0:00:02.2]} 61. Rxa3 {[%clk 0:01:19.1]} 61... Rb8+ {[%clk 0:00:02]}
62. Kc4 {[%clk 0:01:18.3]} 1-0

[Event "*** Titled Tuesday Blitz"]
[Site "Chess.com"]
[Date "2020.10.20"]
[Round "10"]
[White "konradrutkowski"]
[Black "maximnovik"]
[Result "1-0"]
[WhiteElo "2429"]
[BlackElo "2503"]
[TimeControl "180+1"]
[EndTime "11:58:25 PDT"]
[Termination "konradrutkowski won on time"]

1. e4 {[%clk 0:02:52.1]} 1... c6 {[%clk 0:01:53]} 2. d4 {[%clk 0:02:49.5]} 2...
d5 {[%clk 0:01:52.6]} 3. Nc3 {[%clk 0:02:49.4]} 3... dxe4 {[%clk 0:01:52.3]} 4.
Nxe4 {[%clk 0:02:50.1]} 4... Bf5 {[%clk 0:01:52.8]} 5. Ng3 {[%clk 0:02:49.7]}
5... Bg6 {[%clk 0:01:53.3]} 6. Nh3 {[%clk 0:02:48.9]} 6... Nf6 {[%clk
0:01:52.1]} 7. Bc4 {[%clk 0:02:48.8]} 7... e6 {[%clk 0:01:49.4]} 8. Nf4 {[%clk
0:02:48.6]} 8... Bd6 {[%clk 0:01:46.6]} 9. h4 {[%clk 0:02:46.3]} 9... Qc7 {[%clk
0:01:46]} 10. h5 {[%clk 0:02:23.7]} 10... Bxc2 {[%clk 0:01:45]} 11. Qf3 {[%clk
0:02:13.3]} 11... Nd5 {[%clk 0:01:33.6]} 12. Bxd5 {[%clk 0:02:02.6]} 12... cxd5
{[%clk 0:01:32.5]} 13. h6 {[%clk 0:02:02.2]} 13... g6 {[%clk 0:01:30.8]} 14. O-O
{[%clk 0:01:53.3]} 14... Nc6 {[%clk 0:01:29.6]} 15. Be3 {[%clk 0:01:47.1]} 15...
Bf5 {[%clk 0:00:50.4]} 16. Nxf5 {[%clk 0:01:43]} 16... gxf5 {[%clk 0:00:49.6]}
17. Nh5 {[%clk 0:01:39.2]} 17... Qe7 {[%clk 0:00:45.2]} 18. Rfc1 {[%clk
0:01:28.9]} 18... Rg8 {[%clk 0:00:38.2]} 19. b4 {[%clk 0:01:23.8]} 19... Rg4
{[%clk 0:00:32.8]} 20. b5 {[%clk 0:01:20.8]} 20... Nxd4 {[%clk 0:00:28.4]} 21.
Bxd4 {[%clk 0:01:18.5]} 21... Rxd4 {[%clk 0:00:27.6]} 22. Ng7+ {[%clk
0:01:18.8]} 22... Kf8 {[%clk 0:00:25.3]} 23. Nxf5 {[%clk 0:01:16.3]} 23... exf5
{[%clk 0:00:24.4]} 24. Qxf5 {[%clk 0:01:17.2]} 24... Kg8 {[%clk 0:00:19.4]} 25.
Rc3 {[%clk 0:01:15.6]} 25... Re8 {[%clk 0:00:17.2]} 26. g3 {[%clk 0:01:10.2]}
26... Qe4 {[%clk 0:00:15.3]} 27. Qd7 {[%clk 0:01:06.2]} 27... Bf8 {[%clk
0:00:12.8]} 28. Re3 {[%clk 0:01:04.9]} 28... Qxe3 {[%clk 0:00:10]} 29. fxe3
{[%clk 0:01:03.9]} 29... Rxe3 {[%clk 0:00:10.5]} 30. Rf1 {[%clk 0:01:03.4]}
30... Re7 {[%clk 0:00:07.2]} 31. Qf5 {[%clk 0:01:00.7]} 31... Bxh6 {[%clk
0:00:07]} 32. Qf6 {[%clk 0:00:54.7]} 32... Be3+ {[%clk 0:00:03.8]} 33. Kh1
{[%clk 0:00:54.9]} 33... Rde4 {[%clk 0:00:03.6]} 34. Qf5 {[%clk 0:00:46.9]}
34... d4 {[%clk 0:00:03.9]} 35. Qc8+ {[%clk 0:00:46]} 35... Re8 {[%clk
0:00:03.3]} 36. Qc4 {[%clk 0:00:43.7]} 36... R8e7 {[%clk 0:00:02.9]} 37. Kg2
{[%clk 0:00:41.3]} 37... R4e6 {[%clk 0:00:03.2]} 38. Rf5 {[%clk 0:00:38.6]}
38... Kg7 {[%clk 0:00:03.3]} 39. Rd5 {[%clk 0:00:38.4]} 39... Rg6 {[%clk
0:00:02.7]} 40. Qd3 {[%clk 0:00:31.8]} 40... Ree6 {[%clk 0:00:02.7]} 41. Rd7
{[%clk 0:00:29.7]} 41... Ref6 {[%clk 0:00:02.4]} 42. Rxd4 {[%clk 0:00:24.1]}
42... Rf2+ {[%clk 0:00:02]} 43. Kh3 {[%clk 0:00:24.2]} 1-0

[Event "*** Titled Tuesday Blitz"]
[Site "Chess.com"]
[Date "2020.10.20"]
[Round "10"]
[White "glebus008"]
[Black "MarkoPe"]
[Result "1-0"]
[WhiteElo "2353"]
[BlackElo "2185"]
[TimeControl "180+1"]
[EndTime "11:58:25 PDT"]
[Termination "glebus008 won on time"]

1. e4 {[%clk 0:02:59.7]} 1... c6 {[%clk 0:02:56.4]} 2. d4 {[%clk 0:02:57.3]}
2... d5 {[%clk 0:02:56.5]} 3. exd5 {[%clk 0:02:58.2]} 3... cxd5 {[%clk
0:02:56.3]} 4. Nf3 {[%clk 0:02:59.1]} 4... Nc6 {[%clk 0:02:53.3]} 5. Ne5 {[%clk
0:02:59]} 5... Nxe5 {[%clk 0:02:19.3]} 6. dxe5 {[%clk 0:02:59.9]} 6... a6 {[%clk
0:02:19.8]} 7. Bd3 {[%clk 0:02:57.2]} 7... e6 {[%clk 0:02:14.3]} 8. O-O {[%clk
0:02:55.9]} 8... Ne7 {[%clk 0:02:14.5]} 9. Na3 {[%clk 0:02:45.2]} 9... Nc6
{[%clk 0:02:14]} 10. Re1 {[%clk 0:02:43.9]} 10... Bxa3 {[%clk 0:02:11]} 11. bxa3
{[%clk 0:02:43.4]} 11... O-O {[%clk 0:02:11.1]} 12. Qg4 {[%clk 0:02:33.7]} 12...
f5 {[%clk 0:02:02.5]} 13. exf6 {[%clk 0:02:31.2]} 13... Qxf6 {[%clk 0:02:02.2]}
14. Be3 {[%clk 0:02:19.7]} 14... d4 {[%clk 0:02:01.4]} 15. Bg5 {[%clk 0:02:02]}
15... Qxf2+ {[%clk 0:01:59.3]} 16. Kh1 {[%clk 0:02:01.8]} 16... e5 {[%clk
0:01:20.5]} 17. Qh5 {[%clk 0:01:49.1]} 17... Bf5 {[%clk 0:01:18.9]} 18. Rf1
{[%clk 0:01:42.9]} 18... Bg6 {[%clk 0:01:17.1]} 19. Qh3 {[%clk 0:01:32.3]} 19...
e4 {[%clk 0:00:39.3]} 20. Rxf2 {[%clk 0:01:21.4]} 20... Rxf2 {[%clk 0:00:39]}
21. Bxe4 {[%clk 0:01:17.2]} 21... Bxe4 {[%clk 0:00:34.2]} 22. Qe6+ {[%clk
0:01:15.8]} 22... Kh8 {[%clk 0:00:34.5]} 23. Qxe4 {[%clk 0:01:15.3]} 23... Raf8
{[%clk 0:00:35.1]} 24. h3 {[%clk 0:01:10]} 24... h6 {[%clk 0:00:35.3]} 25. Bc1
{[%clk 0:00:44.7]} 25... R8f6 {[%clk 0:00:12.8]} 26. Bb2 {[%clk 0:00:36.2]}
26... R6f4 {[%clk 0:00:10.8]} 27. Qe8+ {[%clk 0:00:33.3]} 27... Kh7 {[%clk
0:00:11.2]} 28. Rc1 {[%clk 0:00:23.1]} 28... d3 {[%clk 0:00:10.5]} 29. cxd3
{[%clk 0:00:19.1]} 29... Rxb2 {[%clk 0:00:08.6]} 30. Rxc6 {[%clk 0:00:16.8]}
30... bxc6 {[%clk 0:00:07.2]} 31. Qxc6 {[%clk 0:00:17.7]} 31... Rff2 {[%clk
0:00:06.8]} 32. Qe4+ {[%clk 0:00:15.7]} 32... Kg8 {[%clk 0:00:05.9]} 33. Qd5+
{[%clk 0:00:15]} 33... Kh7 {[%clk 0:00:05.8]} 34. d4 {[%clk 0:00:12.5]} 34...
Rxa2 {[%clk 0:00:04.7]} 35. Qe4+ {[%clk 0:00:11.4]} 35... Kh8 {[%clk 0:00:04.1]}
36. d5 {[%clk 0:00:10]} 1-0